Cogmind - Beta 16.1 @@@ ROGUE MODE // 2026.03.08 @ 20:45:45 Player: Krysmphoenix Result: Destroyed by H-66 Slayer with Heavy Assault Rifle Performance ------------- Evolutions (4) 2000 Regions Visited (4) 800 Robots Destroyed (7) 35 Value Destroyed (142) 142 Prototype IDs (1) 20 Alien Tech Used (0) 0 Bonus (800) 800 TOTAL SCORE: 3797 Bonus ------- Registered with UFD 300 Met Optimus in HQ 500 Cogmind --------- Core Integrity 0/850 Matter 293/300 Energy 99/100 System Corruption 2% Temperature Cool (0) Movement Core (50) Location -6/Factory Parts ------- > --- POWER (2) -------- (None) > --- PROPULSION (5) --- (None) > --- UTILITY (6) ------ System Shield > --- WEAPON (2) ------- (None) > --- INVENTORY (5) ---- (None) Peak State ------------ > --- POWER ------------ Improved Deuterium Engine Improved Deuterium Engine > --- PROPULSION ------- Light Treads Improved Medium Treads Xenon Bombardment Thruster > --- UTILITY ---------- Scrap Suit Microactuators Shield Generator System Shield A0-MCA's Component Scanner > --- WEAPON ----------- Improved Datajack Heavy Pick > --- INVENTORY -------- Improved Deuterium Engine Microactuators Microactuators Microactuators Remote Datajack [Rating: 54] Favorites ----------- Power Deuterium Engine Engine Deuterium Engine Propulsion Wheel Treads Improved Medium Treads Wheel Wheel Flight Unit Xenon Bombardment Thruster Utility Microactuators Device Microactuators Storage Small Storage Unit Processor A0-MCA's Component Scanner Hackware System Shield Weapon Hammer Energy Gun EM Pulse Gun Ballistic Gun Light Assault Rifle Special Weapon Remote Datajack Impact Weapon Hammer Slashing Weapon Mining Claw Piercing Weapon Heavy Pick Special Melee Weapon Improved Datajack Build | -11 -10 -10 -8 -6 ------- Run | Yrd Mat Sub Scr Fac Slots Evolved 8 | . . . . 8 Power 1 | . . . . 1 Propulsion 3 | . . . . 3 Utility 4 | . . . . 4 Weapon . | . . . . . Parts Attached 37 | 10 3 2 8 14 Power 7 | 1 . 1 1 4 Engine 7 | 1 . 1 1 4 Core . | . . . . . Reactor . | . . . . . Propulsion 8 | 4 . . 2 2 Treads 2 | . . . . 2 Leg . | . . . . . Wheel 4 | 4 . . . . Hover . | . . . . . Flight 2 | . . . 2 . Utility 12 | 2 1 1 3 5 Device 9 | 1 1 1 3 3 Storage 1 | 1 . . . . Processor 1 | . . . . 1 Hackware 1 | . . . . 1 Protection . | . . . . . Artifact . | . . . . . Weapon 10 | 3 2 . 2 3 Energy Gun 2 | 1 1 . . . Energy Cannon . | . . . . . Ballistic Gun 2 | 2 . . . . Ballistic Cannon . | . . . . . Launcher . | . . . . . Special Weapon 2 | . 1 . . 1 Impact Weapon 1 | . . . 1 . Slashing Weapon 1 | . . . 1 . Piercing Weapon 1 | . . . . 1 Special Melee Weapon 1 | . . . . 1 Unidentified Prototypes . | . . . . . Parts Lost 18 | . . . . 18 Power 4 | . . . . 4 Propulsion 4 | . . . . 4 Utility 6 | . . . . 6 Weapon 4 | . . . . 4 Highest Loss Streak 17 | . . . . 17 To Critical Strikes . | . . . . . Average Backups 4 | 2 4 4 4 3 Power . | . . . . . Propulsion . | . 2 1 1 . Utility 1 | . . . 1 2 Weapon . | 1 2 2 . . Tool/Special . | . . . . . Unused Backups 9 | . 1 . 5 3 Power 1 | . 1 . . . Propulsion 2 | . . . 2 . Utility 2 | . . . 1 1 Weapon 3 | . . . 1 2 Tool/Special 1 | . . . 1 . Average Slot Usage (%) 86 | . 100 100 94 63 Engine 11 | . 14 14 13 6 Treads 2 | . . . . 9 Wheel 17 | . 28 28 23 . Flight 4 | . . . 4 7 Device 21 | . 22 28 24 14 Processor 1 | . . . . 4 Hackware 1 | . . . . 5 Energy Gun 5 | . 22 28 2 . Impact Weapon 7 | . . . 12 2 Slashing Weapon 7 | . . . 12 2 Piercing Weapon 1 | . . . . 3 Peak Build Rating 54 | 9 9 12 22 54 Average Rating 21 | 5 8 10 16 40 On Entrance 10 | . 9 9 12 22 Avg Prop Armor Cover (%) 3 | . . . . 3 Naked Turns . | . . . . . Heaviest Build 34 | 13 14 10 17 34 Greatest Support 50 | 32 20 20 20 50 Greatest Overweight (x) 10 | 3 . . 2 10 Average Overweight (x) . | . . . . . Largest Inventory Capacity 8 | 8 8 5 5 5 Average Capacity 5 | 7 6 5 5 5 Most Carried 5 | 5 5 5 5 5 Average Carried 4 | 2 4 4 4 3 Final Capacity 8 | 8 5 5 5 5 Final Carried 5 | 5 5 5 5 . Scrap Suit Usage (%) 40 | . . . 27 89 Parts Cannibalized 4 | . . . . 4 Class Distribution -------------------- 37% | Gladiator 31% | Mutant 15% | Scavenger-Mutant 15% | Scrapper Dominant Class ---------------- Scavenger-Mutant | -10/Materials Scavenger-Mutant | -10/Subcaves Gladiator | -8/Scraptown Mutant | -6/Factory Resources | -11 -10 -10 -8 -6 ----------- Run | Yrd Mat Sub Scr Fac Matter Collected 547 | 316 40 20 70 101 Remotely . | . . . . . Salvage Created 234 | 146 . . . 88 Parts 21 | 15 . . . 6 Haulers Intercepted . | . . . . . Recyclers Shooed . | . . . . . Parts Field Recycled . | . . . . . Retrieved Matter . | . . . . . Parts Self-Destructed . | . . . . . Prevented . | . . . . . Parts Restored . | . . . . . Kills | -11 -10 -10 -8 -6 ------- Run | Yrd Mat Sub Scr Fac Combat Hostiles Destroyed 2 | . . . . 2 Melee 2 | . . . . 2 Classes Destroyed 4 | 3 . . . 1 Worker 2 | 2 . . . . Tunneler 2 | 2 . . . . Recycler 1 | 1 . . . . Programmer 2 | . . . . 2 Best Kill Streak 3 | 3 . . . 1 Combat Bots Only 1 | . . . . 1 Max Kills in Single Turn 1 | 1 . . . 1 Gunslinging . | . . . . . Exploded . | . . . . . Melee 1 | . . . . 1 Uniques/NPCs Destroyed . | . . . . . Combat | -11 -10 -10 -8 -6 -------- Run | Yrd Mat Sub Scr Fac Hostile Shots Fired 186 | . . . . 186 Missed 49 | . . . . 49 Hits 137 | . . . . 137 Projectile 137 | . . . . 137 Critical Strikes 4 | . . . . 4 Part Disruptions 1 | . . . . 1 Damage Taken 2355 | . . . . 2355 Core 850 | . . . . 850 Absorbed by Shields 131 | . . . . 131 Regen/Repaired (Parts) 27 | . . . . 27 Core Remaining (%) 100 | 100 . . 100 . Volleys Fired 9 | 8 1 . . . Largest 2 | 2 2 . . . Hottest 80 | 40 80 . . . Shots Fired 18 | 16 2 . . . Gun 18 | 16 2 . . . Cannon . | . . . . . Launcher . | . . . . . Special . | . . . . . Kinetic 16 | 16 . . . . Thermal 1 | . 1 . . . Explosive . | . . . . . Electromagnetic 1 | . 1 . . . Robot Hit Streak 9 | 9 . . . . Robot Miss Streak 2 | 1 2 . . . Penetration Max . | . . . . . Secondary Targets . | . . . . . Shots Hit Robots 39 | 11 . . . 28 Core Hits 13 | 7 . . . 6 Critical Kills 1 | 1 . . . . Critical Parts Destroyed . | . . . . . Critical Strikes 3 | 1 . . . 2 Destroy 1 | 1 . . . . Impale 2 | . . . . 2 Melee Attacks 35 | . . . . 35 Impact 6 | . . . . 6 Slashing 2 | . . . . 2 Piercing 27 | . . . . 27 Sneak Attacks . | . . . . . Combat Hostiles . | . . . . . Follow-up Attacks 2 | . . . . 2 Damage Inflicted 682 | 95 . . . 587 Guns 95 | 95 . . . . Cannons . | . . . . . Explosions . | . . . . . Melee 587 | . . . . 587 Ramming . | . . . . . Kinetic 95 | 95 . . . . Thermal . | . . . . . Explosive . | . . . . . Electromagnetic . | . . . . . Impact 82 | . . . . 82 Slashing 22 | . . . . 22 Piercing 483 | . . . . 483 Highest Corruption 2 | . . . . 2 Average Corruption 1 | . . . . 1 Corruption Purged . | . . . . . Corruption Blocked . | . . . . . Effects 3 | . . . . 3 Message Errors 1 | . . . . 1 Matter Fused 1 | . . . . 1 Data Loss (minor) 1 | . . . . 1 Overload Shots . | . . . . . Overflow Damage 63 | . . . . 63 Projectiles . | . . . . . Explosions . | . . . . . Melee 63 | . . . . 63 Knockbacks . | . . . . . Impact . | . . . . . Kinetic . | . . . . . Secondary . | . . . . . Self-Inflicted Damage . | . . . . . Shots . | . . . . . Rammed . | . . . . . Targets Rammed . | . . . . . Kicked . | . . . . . Crushed . | . . . . . Highest Temperature . | . . . . . Average Temperature . | . . . . . Received Heat Transfer 66 | . . . . 66 Siege Activations . | . . . . . Martial Activations . | . . . . . Shielding Activations . | . . . . . Robots Disrupted . | . . . . . Combat Hostiles . | . . . . . Robots Corrupted . | . . . . . Combat Hostiles . | . . . . . Parts Fried . | . . . . . Impact Corruptions . | . . . . . Robots Melted . | . . . . . Combat Hostiles . | . . . . . Parts Melted . | . . . . . Heat Transferred . | . . . . . Parts Sabotaged . | . . . . . Parts Stolen . | . . . . . Parts Stripped . | . . . . . Power Chain Reactions . | . . . . . Alert | -11 -10 -10 -8 -6 ------- Run | Yrd Mat Sub Scr Fac Maximum Alert Level . | . . . . . Low Security (%) 100 | 100 100 . . 100 Level 1 . | . . . . . Level 2 . | . . . . . Level 3 . | . . . . . Level 4 . | . . . . . Level 5 . | . . . . . High Security . | . . . . . Max Security . | . . . . . Peak Influence 30 | 10 11 . . 30 Initial 6 | . 6 . . . Average 1 | 1 1 . . 1 Influence Increases 125 | 25 23 . . 77 Destroy 0b10 Robot/C 40 | . . . . 40 Destroy 0b10 Robot/NC 25 | 25 . . . . Destroy Leader 20 | . . . . 20 Successful Hack 40 | . 23 . . 17 Influence Decreases 125 | 15 33 . . 77 Entered New Map 4 | . 4 . . . Time Decay 99 | 15 29 . . 55 Lost Part 22 | . . . . 22 Squads Dispatched 3 | . . . . 3 Investigation . | . . . . . Extermination 2 | . . . . 2 Reinforcement 1 | . . . . 1 Assault . | . . . . . Garrison . | . . . . . Intercept . | . . . . . Searches Triggered . | . . . . . Construction Impeded . | . . . . . Haulers Reinforced . | . . . . . Active Scanning Responses . | . . . . . Cargo Convoy Interrupts . | . . . . . Stealth | -11 -10 -10 -8 -6 --------- Run | Yrd Mat Sub Scr Fac Distress Signals . | . . . . . Communications Jammed . | . . . . . Distress Signals . | . . . . . Times Spotted 11 | . 3 . . 8 Peak Tracking Total 3 | . 2 . . 3 Tactical Retreats . | . . . . . Traps | -11 -10 -10 -8 -6 ------- Run | Yrd Mat Sub Scr Fac Traps Triggered . | . . . . . Indirectly . | . . . . . Trap Hack Attempts . | . . . . . Triggered . | . . . . . Disarmed . | . . . . . Reprogrammed . | . . . . . Reused . | . . . . . Traps Extracted . | . . . . . Installed . | . . . . . Triggered . | . . . . . Machines | -11 -10 -10 -8 -6 ---------- Run | Yrd Mat Sub Scr Fac Machines Disabled . | . . . . . Max in Single Turn . | . . . . . Machines Repaired . | . . . . . Machines Dismantled . | . . . . . Machines Sabotaged . | . . . . . Overloaded Fab Kills . | . . . . . Hacking | -11 -10 -10 -8 -6 --------- Run | Yrd Mat Sub Scr Fac Machines Accessed 14 | . 3 . 8 3 Terminals 4 | . 3 . . 1 Fabricators . | . . . . . Repair Stations . | . . . . . Recycling Units 2 | . . . . 2 Scanalyzers . | . . . . . Garrison Access . | . . . . . Total Hacks 86 | . 11 . 60 15 Successful 76 | . 7 . 60 9 Failed 10 | . 4 . . 6 Catastrophic 1 | . . . . 1 Database Lockouts . | . . . . . Manual 14 | . 11 . . 3 Terminals 20 | . 11 . . 9 Fabricators . | . . . . . Repair Stations . | . . . . . Recycling Units 6 | . . . . 6 Scanalyzers . | . . . . . Garrison Access . | . . . . . Terminal Hacks 65 | . 1 . 60 4 Record 60 | . . . 60 . Branch Access Points 1 | . 1 . . . Alert Level 1 | . . . . 1 Locate Traps 1 | . . . . 1 Reinforcement Status 1 | . . . . 1 Registered Components 1 | . . . . 1 Fabricator Hacks . | . . . . . Repair Station Hacks . | . . . . . Recycling Unit Hacks 3 | . . . . 3 Report Inventory 2 | . . . . 2 Retrieve Components 1 | . . . . 1 Scanalyzer . | . . . . . Garrison Access Hacks . | . . . . . Unauthorized Hacks 8 | . 6 . . 2 Terminals 8 | . 6 . . 2 Assimilate 4 | . 3 . . 1 Botnet 4 | . 3 . . 1 Fabricators . | . . . . . Repair Stations . | . . . . . Recycling Units . | . . . . . Scanalyzers . | . . . . . Garrison Access . | . . . . . Data Cores Recovered . | . . . . . Used . | . . . . . Hacking Detections 5 | . 3 . . 2 Full Trace Events . | . . . . . Feedback Events . | . . . . . Feedback Blocked . | . . . . . Robot Schematics Acquired . | . . . . . Robots Built . | . . . . . Authchips . | . . . . . Time . | . . . . . Total Robot Build Rating . | . . . . . Part Schematics Acquired . | . . . . . Parts Built . | . . . . . Authchips . | . . . . . Time . | . . . . . Total Part Build Rating . | . . . . . Part Studies Acquired . | . . . . . Parts Repaired . | . . . . . Time . | . . . . . Parts Recycled . | . . . . . Recycled Matter . | . . . . . Retrieved Matter . | . . . . . Retrieved Components 1 | . . . . 1 Parts Scanalyzed . | . . . . . Part Schematics Acquired . | . . . . . Parts Damaged . | . . . . . Bothacking | -11 -10 -10 -8 -6 ------------ Run | Yrd Mat Sub Scr Fac Used RIF Installer . | . . . . . Robots Hacked . | . . . . . Non-combat . | . . . . . Combat . | . . . . . Robot Hacks Applied . | . . . . . Relay Couplers Released . | . . . . . Fabnet Peak Effective % . | . . . . . Robots Rewired . | . . . . . Allies Hacked . | . . . . . Hacks Repelled . | . . . . . Allies | -11 -10 -10 -8 -6 -------- Run | Yrd Mat Sub Scr Fac Total Allies . | . . . . . Largest Group . | . . . . . Highest-Rated Group . | . . . . . Highest-Rated Ally . | . . . . . Initial UFD Resources 23 | . . . . 23 Total Orders . | . . . . . Ally Attacks . | . . . . . Total Damage . | . . . . . Kills . | . . . . . Allies Corrupted . | . . . . . Allies Melted . | . . . . . Intel | -11 -10 -10 -8 -6 ------- Run | Yrd Mat Sub Scr Fac Active Infowar (turns) 586 | 16 189 245 136 . Terrain 586 | 16 189 245 136 . Robot Analysis Total . | . . . . . Derelict Logs Recovered 1 | . . . 1 . Drone Launches . | . . . . . Drone Recoveries . | . . . . . Exploration | -11 -10 -10 -8 -6 ------------- Run | Yrd Mat Sub Scr Fac Turns Passed 3142 | 119 189 245 1715 874 Spaces Moved 2793 | 71 184 147 1962 429 Core 35 | 11 . . . 24 Treads 337 | . . . . 337 Legs . | . . . . . Wheels 2123 | 60 184 147 1732 . Hover . | . . . . . Flight 298 | . . . 230 68 Fastest Speed 50 | 50 80 80 80 50 Average Speed 94 | 100 80 80 84 152 Slowest Speed 550 | 200 80 80 205 550 Overloaded Moves . | . . . . . Propulsion Burnouts . | . . . . . Robots Hopped . | . . . . . Potential Cave-ins . | . . . . . Cave-ins Triggered . | . . . . . Exploration Rate (%) 30 | 5 42 10 88 9 Regions Visited 4 Branch Regions 2 Pre-discovered Areas 1 | . . . 1 . Known Exits Taken . | . . . . . Unknown Exits Taken 4 | 1 1 1 1 . Scrap Searched 5 | . . 1 4 . Spaces Dug . | . . . . . Terrain Destroyed . | . . . . . Melee . | . . . . . Projectile . | . . . . . AOE . | . . . . . Terrain Rammed . | . . . . . Walls Destroyed . | . . . . . Machines Disabled . | . . . . . Actions | -11 -10 -10 -8 -6 --------- Run | Yrd Mat Sub Scr Fac Total 3229 | 104 224 275 2028 598 Wait 258 | . 28 119 22 89 Move 2789 | 70 183 146 1961 429 Hop . | . . . . . Pick Up 57 | 14 4 4 16 19 Fast Attach . | . . . . . Attach 29 | 7 2 1 5 14 Detach 1 | . . . 1 . Swap 13 | 3 2 1 5 2 Drop 39 | 2 4 4 17 12 Fire 9 | 8 1 . . . Melee 33 | . . . . 33 Ram . | . . . . . Kick . | . . . . . Crush . | . . . . . Escape Stasis . | . . . . . Rewire 1 | . . . 1 . Trap . | . . . . . Miscellaneous . | . . . . . Route ------- -11/Scrapyard -10/Materials (discovered 3 exits: [*Mat] / Min / [*Sub]) -10/Subcaves (discovered 3 exits: [*Mat] / [Rec] / *Scr) -8/Scraptown (discovered 2 exits: *Fac x2) -6/Factory (discovered 1 exit: [*Fac]) History --------- Turn | Location | Event 31 | -11/Scrapyard | Discovered new exit (range 16) 120 | -11/Scrapyard | Entered Materials 121 | -10/Materials | Met a group of wandering Federalists 244 | -10/Materials | Discovered new exit (range 14) 282 | -10/Materials | Identified exit to Mines 298 | -10/Materials | Discovered new exit (range 9) 309 | -10/Materials | Entered Subcaves 310 | -10/Subcaves | Continued accompanying wandering Federalists (6) 381 | -10/Subcaves | Discovered new exit (range 14) 407 | -10/Subcaves | Lost 3 allies 478 | -10/Subcaves | Build established: Scavenger-Mutant 520 | -10/Subcaves | Discovered new exit (range 14) 539 | -10/Subcaves | Wandering Federalist uncovered a shortcut to Scraptown 554 | -10/Subcaves | Entered Scraptown 658 | -8/Scraptown | Heard Great Nut preacher, LISTEN AND RECITE! 884 | -8/Scraptown | Discovered new exit (range 7) 978 | -8/Scraptown | Visited Shadow of the Wyrm 1035 | -8/Scraptown | Build established: Gladiator 1074 | -8/Scraptown | Scanned Subdweller tech in exchange for log data 1076 | -8/Scraptown | Learned location of Testing (-3) 1126 | -8/Scraptown | Visited Spacefarers 1180 | -8/Scraptown | Visited Cyclists 1208 | -8/Scraptown | Visited Comm Corps 1265 | -8/Scraptown | Visited Symbiants 1290 | -8/Scraptown | Visited UFD Registry 1290 | -8/Scraptown | Registered with UFD as "Nanocell" 1296 | -8/Scraptown | Visited Red Mages 1330 | -8/Scraptown | Visited The Evicted 1386 | -8/Scraptown | Entered Cyclist Reading Room 1703 | -8/Scraptown | Visited A0-MCA Data Center 1708 | -8/Scraptown | Given a C+ rating by A0-MCA 1712 | -8/Scraptown | Found A0-MCA's Component Scanner 1730 | -8/Scraptown | Visited Research Penetration Think Tank 1749 | -8/Scraptown | Visited Derelict Rescue Squad 1793 | -8/Scraptown | Found Scrap Suit 1839 | -8/Scraptown | Discovered new exit (range 5) 1869 | -8/Scraptown | Visited Cartography Club 1931 | -8/Scraptown | Visited Scrapoid Pod Storage 1947 | -8/Scraptown | Visited DA-N13 Charitable Foundation 1974 | -8/Scraptown | Visited Supply Room 2011 | -8/Scraptown | Visited Botcube Research 2041 | -8/Scraptown | Visited Science Testing Area 2083 | -8/Scraptown | Build established: Scrapper 2152 | -8/Scraptown | Met Optimus 2152 | -8/Scraptown | Accepted into 0bPrime 2269 | -8/Scraptown | Entered Factory 2269 | -6/Factory | Evolved 8 slots: Power x1, Propulsion x3, Utility x4 2593 | -6/Factory | Discovered new exit (range 6) 2987 | -6/Factory | Build established: Mutant 3098 | -6/Factory | Core integrity fell below 50% 3136 | -6/Factory | Core integrity fell below 20% 3143 | -6/Factory | Destroyed by H-66 Slayer with Heavy Assault Rifle Last Messages --------------- 03126_ Slug penetrates Wall. 03126_ U-05 Engineer builds a Wall. 03126_ Knocked back. 03127_ Penetrated by Slug. 03129_ Slug penetrates Wall. 03129_ Imp. Deuterium Engine destroyed. 03131_ Microactuators destroyed. 03132_ Slug penetrates Wall. 03133_ Wall collapses. 03134_ Penetrated by Slug. 03134_ Hvy. Pick destroyed. 03135_ Penetrated by Slug. 03135_ Slug penetrates Wall. 03136_ U-05 Engineer builds a Wall. 03137_ Penetrated by Slug. 03138_ R-10 Processor collects Shock Rifle. 03139_ Acquired 8 matter. 03140_ Slug penetrates Wall. 03141_ System corrupted: Component data lost. 03143_ Penetrated by Slug. Map ----- +----------------------------------------------------+ | ?????????????????????????????????????????????????? | | ?????????????????????????????????????????????????? | | ?????????????????????????????????????????????????? | | ?????????????????????????????????????????????????? | | ?????????????????????????????????????????????????? | | ?????????????????????????????????????????????????? | | ?????????????????????????????????????????????????? | | ?????????????????????????????????????????????????? | | ?????????????????????????????????????????????????? | | ?????????????????????????????????????????????????? | | ?????????????????????????????????????????????????? | | ???????????????????????#??##?????????????????????? | | ??????????????????????? ? ?????????????????????? | | ??????????????????????? T" ?????????????????????? | | ??????????????????????? " ?????????????????????? | | ??????????????????????? ?????????????????????? | | ??????????????????????? ?????????????????????? | | ???????????????????????# #?????????????????????? | | ???????????????????????# #?????????????????????? | | ???????????????????????# +?????????????????????? | | ???????????????????????# w#?????????????????????? | | ???????????????????????# #?????????????????????? | | ???????????????????????# #?????????????????????? | | ???????????????????????# #?????????????????????? | | ???????????????????????# #?????????????????????? | | ######################## @ #?????????????????????? | | =/# # k#?????????????????????? | | / # """"""""" # %#??????##?????????????? | | # # #?????# #?????????????? | | """"" # """"""""" + h###########???????????? | | """"" # # ; % ##??????????? | | """""[# """"""""" # # ##??????????? | | """"" + # #H ##??????????? | | # """"""""" # h#| * #???????????? | | ###+### # %R ! #???????????? | | ?# ################### # %% ** #???????????? | | ## +?????????????#%% # #???????????? | | # #####?????????????#% #!% #???????????? | | ## ##?????????????????# ^^###########???????????? | | ## #??????????????????# %#?????????????????????? | | ## #??????????????????# =#?????????????????????? | | ## #??????????????????# #?????????????????????? | | ## #?????????????????? ?????????????????????? | | ## ###########??????? ?????????????????????? | | # ??? ????????????????????? | | + ?? ????????????????????? | | # ? #???????????????????? | | # #############??## #???????????????????? | | # #???????????????# #???????????????????? | | # #???????????????## ##???????????????????? | +----------------------------------------------------+ Best States ------------- Heat Dissipation 39 Energy Generation 27 Energy Capacity 480 Matter Stores 300 Matter Capacity 300 Sight Range 16 Terrain Scan Range 16 Terrain Scan Density 10 Melee Speed Boost 50 Evasion (%) 50 Recoil Reduction 2 Defensive Hacking 10 Item Schematics ----------------- None Robot Schematics ------------------ None Fabricated ------------ Nothing Repaired ---------- Nothing Studied --------- None Alien Tech Used ----------------- None Achievements -------------- Bob, First Of His Name Link The Feds Strength In Numbers Challenges ------------ None Game ------ Seed WeaponGaussMicroactuators Manual? 0 Play Time 00:41:24 Cumulative 15.1 hours Start 2026.03.08 @ 20:04:02 End 2026.03.08 @ 20:45:45 Sessions 1 Manual Loads 0 Difficulty Rogue Special Mode None Game No. 28 Rogue 25 Adventurer 3 Explorer 0 Win Type - Total 1 Types 1/0/0/0/0/0/0/0/0/0 Lore% 21 Gallery% 17 Achievement% 20 Wizard Run 0 Options --------- Layout 1 ASCII 0 Keyboard 0 Movement Numpad Keybinds 0 Fullscreen 2 Font 24/Proggy Map View 50x35 Zoom Use 0% Tactical HUD 1 Map Filters NONE Filters NONE Steam 1 RUN: 9755bba9-af5b-45a5-9072-b580f1bbb114